[Event "76th Montenegro Championship 2024"]
[Site "Podgorica"]
[Date "2024.02.14"]
[Round "10.2"]
[White "Petrov, Nikita"]
[Black "Smirnov, Artem"]
[Result "1-0"]
[ECO "E18"]
[WhiteElo "2563"]
[BlackElo "2406"]
[Annotator "RC"]
[PlyCount "151"]
[EventDate "2024.02.06"]
[EventType "swiss"]
[EventCountry "MNE"]
[SourceTitle "playchess.com"]
[Source "ChessBase"]
[SourceQuality "1"]
[TimeControl "40/5400+30:1800+30"]

1. Nf3 {[%emt 0:00:52]} Nf6 {[%emt 0:00:11]} 2. c4 {[%emt 0:00:12]} b6 {[%emt 0:00:42]} 3. g3 {[%emt 0:00:55]} Bb7 {[%emt 0:00:13]} 4. d4 {[%emt 0:00:19]} e6 {[%emt 0:00:14]} 5. Bg2 {[%emt 0:00:13]} Be7 {[%emt 0:00:22]} 6. O-O {[%emt 0:01:32]} d5 {[%emt 0:01:36]} 7. cxd5 {[%emt 0:01:33]} exd5 {[%emt 0:00:07]} 8. Nc3 {[%emt 0:00:57]} O-O {[%emt 0:00:43]} 9. Bf4 {[%emt 0:00:35]} Nbd7 {[%emt 0:01:57]} 10. Rc1 {[%emt 0:03:25]} c6 {[%emt 0:00:43]} 11. h4 {[%emt 0:05:11]} Re8 {[%emt 0:14:34]} 12. e3 {[%emt 0:01:01]} Bb4 {[%emt 0:07:52]} 13. Qc2 {[%emt 0:10:50]} Nf8 {[%emt 0:17:06]} 14. Ne5 {[%emt 0:04:35]} Ne6 {[%emt 0:12:24]} 15. Rfd1 {[%emt 0:05:46]} Rc8 {[%emt 0:39:16]} 16. Qb1 {[%emt 0:11:42]} Qe7 {[%emt 0:00:00]} 17. Nd3 {[%emt 0:05:11]} Bxc3 {[%emt 0:00:00]} 18. bxc3 {[%emt 0:00:48]} c5 {[%emt 0:00:00]} 19. dxc5 {[%emt 0:07:36]} bxc5 {[%emt 0:00:00]} 20. c4 {[%emt 0:02:50]} Ba8 {[%emt 0:00:00]} 21. Be5 {[%emt 0:04:28]} dxc4 {[%emt 0:00:00]} 22. Bxf6 {[%emt 0:01:26]} Qxf6 {[%emt 0:00:00]} 23. Rxc4 {[%emt 0:00:11]} Bxg2 {[%emt 0:00:00]} 24. Kxg2 {[%emt 0:00:05]} Red8 {[%emt 0:00:00]} 25. Ne1 {[%emt 0:10:04]} Rb8 {[%emt 0:02:11]} 26. Rxd8+ {[%emt 0:02:11]} Qxd8 {[%emt 0:00:07]} 27. Qc2 {[%emt 0:02:38]} Rb4 {[%emt 0:02:01]} 28. Rc3 {[%emt 0:02:03]} Qd5+ {[%emt 0:00:42]} 29. Nf3 {[%emt 0:00:12]} h6 {[%emt 0:01:02]} 30. a3 {[%emt 0:01:22]} Rb6 {[%emt 0:00:26]} 31. Qa4 {[%emt 0:03:25]} Qc6 {[%emt 0:00:50]} 32. Qxc6 {[%emt 0:03:03]} Rxc6 {[%emt 0:00:01]} 33. Nd4 {[%emt 0:00:24]} Nxd4 {[%emt 0:00:53]} 34. exd4 {[%emt 0:00:04]} c4 {[%emt 0:00:09]} 35. Kf3 {[%emt 0:00:15]} Kf8 {[%emt 0:00:48]} 36. Ke4 {[%emt 0:00:49]} Ra6 {[%emt 0:00:43]} 37. Kd5 {[%emt 0:00:06]} Ke7 {[%emt 0:00:30]} 38. Kc5 {[%emt 0:02:43]} Kd7 {[%emt 0:00:22]} 39. Kb5 {[%emt 0:02:16]} Rf6 {[%emt 0:00:36]} 40. f4 {[%emt 0:00:00]} Rc6 {[%emt 0:00:00]} 41. Rxc4 {[%emt 0:08:46]} Rb6+ {[%emt 0:08:32]} 42. Kc5 {[%emt 0:01:07]} Rc6+ {[%emt 0:10:05]} 43. Kb4 {[%emt 0:02:40]} Rb6+ {[%emt 0:01:07]} 44. Kc5 {[%emt 0:05:39]} Rc6+ {[%emt 0:00:07]} 45. Kd5 {[%emt 0:07:05]} Rd6+ {[%emt 0:01:39]} 46. Ke4 {[%emt 0:00:16]} Re6+ {[%emt 0:00:22]} 47. Kf3 {[%emt 0:00:34]} Ra6 {[%emt 0:03:24]} 48. a4 {[%emt 0:00:31]} Rb6 {[%emt 0:06:40]} 49. Kg4 {[%emt 0:05:43]} Rg6+ {[%emt 0:01:19]} 50. Kf3 {[%emt 0:00:23]} Rb6 {[%emt 0:00:02]} 51. Rc5 {[%emt 0:01:04]} Rb4 {[%emt 0:01:48]} 52. Ra5 {[%emt 0:00:25]} Rxd4 {[%emt 0:00:37]} 53. Rxa7+ {[%emt 0:00:10]} Ke6 {[%emt 0:00:04]} 54. h5 {[%emt 0:04:03]} Rc4 {[%emt 0:00:39]} 55. a5 {[%emt 0:00:30]} Rc3+ {[%emt 0:00:41]} 56. Kg4 {[%emt 0:00:08]} f5+ {[%emt 0:01:06]} 57. Kh3 {[%emt 0:00:37]} Kf6 {[%emt 0:00:23]} 58. Ra6+ {[%emt 0:00:04]} Kf7 {[%emt 0:00:12]} 59. Rb6 {[%emt 0:01:26]} Ra3 {[%emt 0:00:35]} 60. Rb7+ {[%emt 0:00:14]} Kf6 {[%emt 0:00:22]} 61. Rb6+ {[%emt 0:02:17]} Kf7 {[%emt 0:00:02]} 62. a6 {[%emt 0:00:04]} Ra2 {[%emt 0:01:32]} 63. Rg6 {[%emt 0:00:26]} Kf8 {[%emt 0:00:38]} 64. Rc6 {[%emt 0:00:30]} Kf7 {[%emt 0:00:04]} 65. Rc7+ {[%emt 0:00:16]} Kf6 {[%emt 0:00:05]} 66. a7 {[%emt 0:00:39]} g5 {[%emt 0:01:09]} 67. Rc6+ {[%emt 0:00:28]} Kg7 {[%emt 0:00:34]} 68. Rg6+ {[%emt 0:01:08]} Kh7 {[%emt 0:00:06]} 69. fxg5 {[%emt 0:00:04]} hxg5 {[%emt 0:00:16]} 70. Rxg5 {[%emt 0:00:03]} f4 {[%emt 0:00:59]} 71. g4 {[%emt 0:00:20]} Rxa7 {[%emt 0:00:38]} 72. Rf5 {[%emt 0:00:08]} Ra3+ {[%emt 0:00:37]} 73. Kh4 {[%emt 0:00:35]} f3 {[%emt 0:00:34]} 74. Rf7+ {[%emt 0:01:56]} Kg8 {[%emt 0:00:06]} 75. Rf4 {[%emt 0:00:42]} Kg7 {[%emt 0:00:18]} 76. g5 {[%emt 0:00:25]} 1-0

[Event "76th Montenegro Championship 2024"]
[Site "Podgorica"]
[Date "2024.02.14"]
[Round "10.3"]
[White "Kalezic, Blazo"]
[Black "Draskovic, Luka"]
[Result "1/2-1/2"]
[ECO "C50"]
[WhiteElo "2407"]
[BlackElo "2481"]
[Annotator "TA"]
[PlyCount "40"]
[EventDate "2024.02.06"]
[EventType "swiss"]
[EventCountry "MNE"]
[SourceTitle "playchess.com"]
[Source "ChessBase"]
[SourceQuality "1"]
[TimeControl "40/5400+30:1800+30"]

{[%evp 9,40,37,62,33,47,40,49,31,41,38,42,43,48,43,41,30,71,60,58,55,61,-7,-6,-6,-1,-5,0,-2,-2,-2,-2,-9,-2]} 1. e4 {[%emt 0:00:03]} e5 {[%emt 0:00:05]} 2. Nf3 {[%emt 0:00:12]} Nc6 {[%emt 0:00:06]} 3. Bc4 {[%emt 0:01:14]} d6 {[%emt 0:01:53]} 4. c3 {[%emt 0:03:41]} f5 {[%emt 0:01:34]} 5. d3 {[%emt 0:00:34]} f4 {[%emt 0:01:46]} 6. b4 {[%emt 0:03:16] White is more active.} Qf6 {[%emt 0:02:22]} 7. Qb3 {[%emt 0:01:32]} Nh6 {[%emt 0:01:27]} 8. a4 {[%emt 0:01:04][%cal Od3d4] White is slightly better.} Nf7 {[%emt 0:09:28]} 9. Bb2 {[%emt 0:08:13]} Ncd8 {[%emt 0:03:11]} 10. Nbd2 {[%emt 0:04:36]} g5 {[%emt 0:03:24]} 11. O-O-O {[%emt 0:00:24]} Bd7 {[%emt 0:05:25]} 12. Ne1 {[%emt 0:03:17]} a5 {[%emt 0:06:20] [#]} 13. b5 {[%emt 0:01:05]} Ne6 {[%emt 0:03:59] [#]} 14. d4 $1 {[%emt 0:04:19]} Bg7 {[%emt 0:01:03]} 15. Bxe6 {[%emt 0:03:49]} ({Better is} 15. Nd3 $14) 15... Bxe6 $11 {[%emt 0:01:06] The position is equal.} 16. d5 {[%emt 0:00:08]} Bd7 {[%emt 0:01:47]} 17. h3 {[%emt 0:00:56]} O-O {[%emt 0:01:36]} 18. f3 {[%emt 0:00:49]} b6 {[%emt 0:03:13]} 19. Nd3 {[%emt 0:02:11]} h5 {[%emt 0:01:55]} 20. Rdg1 {[%emt 0:01:00]} Rfe8 {[%emt 0:07:09] Weighted Error Value: White=0.12 (very precise) /Black=0.06 (flawless) .  Mistake:       	White=1     	---        Inaccurate:     	---       	Black=1      OK:         	White=7     	Black=5} 1/2-1/2

[Event "76th Montenegro Championship 2024"]
[Site "Podgorica"]
[Date "2024.02.14"]
[Round "10.4"]
[White "Ivanovic, Bozidar"]
[Black "Nikcevic, Nebojsa"]
[Result "1-0"]
[ECO "C64"]
[WhiteElo "2403"]
[BlackElo "2338"]
[Annotator "RC"]
[PlyCount "187"]
[EventDate "2024.02.06"]
[EventType "swiss"]
[EventCountry "MNE"]
[SourceTitle "playchess.com"]
[Source "ChessBase"]
[SourceQuality "1"]
[TimeControl "40/5400+30:1800+30"]

1. e4 {[%emt 0:00:05]} e5 {[%emt 0:02:39]} 2. Nf3 {[%emt 0:01:15]} Nc6 {[%emt 0:00:16]} 3. Bb5 {[%emt 0:00:22]} a6 {[%emt 0:00:25]} 4. Ba4 {[%emt 0:00:12]} Bc5 {[%emt 0:03:02]} 5. O-O {[%emt 0:07:33]} Nge7 {[%emt 0:01:55]} 6. c3 {[%emt 0:04:49]} Ba7 {[%emt 0:00:19]} 7. d3 {[%emt 0:02:09]} O-O {[%emt 0:02:21]} 8. Nbd2 {[%emt 0:20:37]} Ng6 {[%emt 0:00:26]} 9. Bb3 {[%emt 0:02:48]} d6 {[%emt 0:00:54]} 10. Nc4 {[%emt 0:01:18]} h6 {[%emt 0:16:19]} 11. Be3 {[%emt 0:03:43]} b5 {[%emt 0:01:25]} 12. Ncd2 {[%emt 0:00:15]} Bxe3 {[%emt 0:02:12]} 13. fxe3 {[%emt 0:00:08]} Na5 {[%emt 0:00:19]} 14. Bc2 {[%emt 0:00:37]} c5 {[%emt 0:02:33]} 15. a3 {[%emt 0:08:13]} Be6 {[%emt 0:10:09]} 16. b4 {[%emt 0:06:05]} Nc6 {[%emt 0:00:54]} 17. Qe2 {[%emt 0:04:49]} Qc7 {[%emt 0:09:41]} 18. Rfc1 {[%emt 0:01:45]} Rfb8 {[%emt 0:06:00]} 19. Qf2 {[%emt 0:02:13]} a5 {[%emt 0:02:59]} 20. d4 {[%emt 0:02:57]} Nce7 {[%emt 0:00:24]} 21. dxc5 {[%emt 0:03:15]} dxc5 {[%emt 0:00:19]} 22. bxc5 {[%emt 0:04:27]} Qxc5 {[%emt 0:02:01]} 23. Bb3 {[%emt 0:00:10]} Bxb3 {[%emt 0:01:50]} 24. Nxb3 {[%emt 0:00:09]} Qc6 {[%emt 0:00:28]} 25. Nbd2 {[%emt 0:00:37]} a4 {[%emt 0:02:13]} 26. Ne1 {[%emt 0:02:50]} Rd8 {[%emt 0:11:58]} 27. c4 {[%emt 0:02:02]} Qd6 {[%emt 0:00:09]} 28. Nef3 {[%emt 0:00:34]} b4 {[%emt 0:00:41]} 29. c5 {[%emt 0:00:14]} Qb8 {[%emt 0:00:11]} 30. axb4 {[%emt 0:00:08]} Qxb4 {[%emt 0:00:24]} 31. Rab1 {[%emt 0:00:10]} Qa5 {[%emt 0:02:43]} 32. Nc4 {[%emt 0:01:09]} Qxc5 {[%emt 0:01:32]} 33. Nb6 {[%emt 0:00:27]} Qa5 {[%emt 0:00:21]} 34. Nxa8 {[%emt 0:00:25]} Rxa8 {[%emt 0:01:33]} 35. Nd2 {[%emt 0:00:34]} Qa6 {[%emt 0:08:18]} 36. Nc4 {[%emt 0:01:49]} Rc8 {[%emt 0:00:26]} 37. Qa2 {[%emt 0:00:35]} Qc6 {[%emt 0:02:14]} 38. Qc2 {[%emt 0:03:12]} h5 {[%emt 0:00:37]} 39. Qd3 {[%emt 0:10:21]} Qe6 {[%emt 0:01:56]} 40. Nd2 {[%emt 0:00:00]} Ra8 {[%emt 0:00:00]} 41. Qc4 {[%emt 0:04:03]} Qd7 {[%emt 0:05:57]} 42. Nf3 {[%emt 0:04:10]} Qg4 {[%emt 0:00:37]} 43. h3 {[%emt 0:00:44]} Qg3 {[%emt 0:00:40]} 44. Rf1 {[%emt 0:00:52]} a3 {[%emt 0:03:10]} 45. Qa2 {[%emt 0:00:35]} Ra6 {[%emt 0:08:21]} 46. Rb3 {[%emt 0:12:26]} Kh7 {[%emt 0:11:17]} 47. Rxa3 {[%emt 0:01:11]} Rxa3 {[%emt 0:00:04]} 48. Qxa3 {[%emt 0:00:08]} Ng8 {[%emt 0:00:22]} 49. Qa8 {[%emt 0:05:23]} f6 {[%emt 0:00:56]} 50. Qa2 {[%emt 0:05:22]} Nf8 {[%emt 0:05:03]} 51. Qf7 {[%emt 0:01:13]} Ng6 {[%emt 0:00:34]} 52. Qa2 {[%emt 0:01:48]} Nh8 {[%emt 0:00:32]} 53. Qe2 {[%emt 0:00:17]} Nh6 {[%emt 0:00:30]} 54. Rb1 {[%emt 0:00:29]} N8f7 {[%emt 0:00:25]} 55. Qf2 {[%emt 0:00:51]} Qg6 {[%emt 0:01:30]} 56. Rb4 {[%emt 0:00:16]} Ng5 {[%emt 0:00:18]} 57. Nxg5+ {[%emt 0:00:10]} Qxg5 {[%emt 0:00:04]} 58. Qf3 {[%emt 0:00:42]} h4 {[%emt 0:00:53]} 59. Qf2 {[%emt 0:00:34]} Qh5 {[%emt 0:00:10]} 60. Kh2 {[%emt 0:00:44]} Qg5 {[%emt 0:00:18]} 61. Rb7 {[%emt 0:00:23]} Kh8 {[%emt 0:01:36]} 62. Rc7 {[%emt 0:00:40]} Kh7 {[%emt 0:00:18]} 63. Rc1 {[%emt 0:00:56]} Qh5 {[%emt 0:00:37]} 64. Rg1 {[%emt 0:00:14]} Qg5 {[%emt 0:00:22]} 65. Qf3 {[%emt 0:00:13]} Kh8 {[%emt 0:00:27]} 66. g3 {[%emt 0:00:32]} hxg3+ {[%emt 0:01:10]} 67. Rxg3 {[%emt 0:00:47]} Qh4 {[%emt 0:00:58]} 68. Rg6 {[%emt 0:00:29]} Nf7 {[%emt 0:00:37]} 69. Rg4 {[%emt 0:01:04]} Qh6 {[%emt 0:00:46]} 70. Qg3 {[%emt 0:00:14]} g5 {[%emt 0:00:55]} 71. Qf3 {[%emt 0:00:29]} Kg7 {[%emt 0:00:51]} 72. Rg2 {[%emt 0:00:28]} Qg6 {[%emt 0:00:18]} 73. Rd2 {[%emt 0:01:00]} g4 {[%emt 0:00:42]} 74. Qxg4 {[%emt 0:02:03]} Qxg4 {[%emt 0:00:04]} 75. hxg4 {[%emt 0:00:02]} Ng5 {[%emt 0:00:05]} 76. Ra2 {[%emt 0:00:23]} Nxe4 {[%emt 0:00:08]} 77. Kh3 {[%emt 0:00:11]} Kg6 {[%emt 0:00:06]} 78. Ra4 {[%emt 0:00:15]} Ng5+ {[%emt 0:00:13]} 79. Kg3 {[%emt 0:00:17]} Kg7 {[%emt 0:00:40]} 80. Ra7+ {[%emt 0:00:13]} Kg6 {[%emt 0:00:01]} 81. Kf2 {[%emt 0:00:38]} Ne4+ {[%emt 0:00:08]} 82. Kf3 {[%emt 0:00:08]} Ng5+ {[%emt 0:00:04]} 83. Ke2 {[%emt 0:00:16]} Ne4 {[%emt 0:00:04]} 84. Rc7 {[%emt 0:00:25]} Ng5 {[%emt 0:00:10]} 85. Kd3 {[%emt 0:00:18]} Ne6 {[%emt 0:01:15]} 86. Rc8 {[%emt 0:00:04]} Ng5 {[%emt 0:00:15]} 87. Kc4 {[%emt 0:00:51]} Ne4 {[%emt 0:00:49]} 88. Kd5 {[%emt 0:03:00]} Nf2 {[%emt 0:00:07]} 89. Ke6 {[%emt 0:00:19]} Nxg4 {[%emt 0:00:18]} 90. Rg8+ {[%emt 0:00:04]} Kh5 {[%emt 0:00:14]} 91. e4 {[%emt 0:00:25]} f5 {[%emt 0:04:13]} 92. exf5 {[%emt 0:01:04]} e4 {[%emt 0:00:02]} 93. f6 {[%emt 0:00:31]} e3 {[%emt 0:01:07]} 94. Rh8+ {[%emt 0:00:16]} 1-0

[Event "76th Montenegro Championship 2024"]
[Site "Podgorica"]
[Date "2024.02.14"]
[Round "10.5"]
[White "Tomic, Aleksandar"]
[Black "Vukcevic, Nemanja"]
[Result "0-1"]
[ECO "C41"]
[WhiteElo "2398"]
[BlackElo "2275"]
[Annotator "TA"]
[PlyCount "66"]
[EventDate "2024.02.06"]
[EventType "swiss"]
[EventCountry "MNE"]
[SourceTitle "playchess.com"]
[Source "ChessBase"]
[SourceQuality "1"]
[TimeControl "40/5400+30:1800+30"]

{[%evp 14,66,39,34,39,35,32,0,10,10,86,87,81,55,55,47,56,61,72,0,0,0,0,-4,27,54,63,77,87,33,36,42,22,46,28,19,99,89,83,0,0,-437,-436,-862,-845,-29989,-34,-24,-41,-47,-48,-29991,-29992,-29996,-29990]} 1. e4 {[%emt 0:03:15]} d6 {[%emt 0:00:23]} 2. d4 {[%emt 0:00:28]} Nf6 {[%emt 0:00:07]} 3. Nc3 {[%emt 0:00:36]} e5 {[%emt 0:00:06]} 4. Nf3 {[%emt 0:01:12]} Nbd7 {[%emt 0:00:09]} 5. Bc4 {[%emt 0:01:21]} Be7 {[%emt 0:00:09]} 6. O-O {[%emt 0:00:26]} O-O {[%emt 0:00:06]} 7. Re1 {[%emt 0:00:35]} a6 {[%emt 0:00:10]} 8. a4 {[%emt 0:01:04]} b6 {[%emt 0:00:07]} 9. h3 {[%emt 0:05:31]} Bb7 {[%emt 0:00:55]} 10. b3 {[%emt 0:03:01]} c6 {[%emt 0:06:14] The position is equal.} 11. d5 {[%emt 0:00:35]} c5 {[%emt 0:09:00]} (11... cxd5 $11 {keeps the balance.} 12. Nxd5 (12. Bxd5 Qc7 $11) 12... Nxd5 13. Bxd5 Qc7) 12. Bf1 {[%emt 0:00:58]} Ne8 {[%emt 0:02:30]} 13. Nd2 {[%emt 0:01:33] Black is weak on the light squares} g6 {[%emt 0:06:12][%cal Bg7g6,Bg6g5][%mdl 32]} 14. Nc4 {[%emt 0:01:08]} f5 {[%emt 0:01:18]} 15. Bh6 {[%emt 0:07:58]} Rf7 {[%emt 0:03:43]} 16. f4 {[%emt 0:30:50]} (16. Be2 $16) 16... exf4 $11 {[%emt 0:06:37]} 17. Bxf4 {[%emt 0:05:12]} g5 {[%emt 0:07:18]} 18. e5 {[%emt 0:02:24] e6 would now be deadly.} dxe5 {[%emt 0:09:01]} (18... gxf4 {is more complex.} 19. e6 Rg7 20. exd7 Nf6) 19. Bxe5 {[%emt 0:01:21]} Nxe5 {[%emt 0:06:24]} 20. Nxe5 {[%emt 0:00:43]} Rg7 {[%emt 0:00:53] [#]} 21. Qf3 {[%emt 0:07:02]} ({White should play} 21. Nc6 $1 $16 {[%cal Rc6d8]} Bxc6 22. dxc6) 21... Nd6 $14 {[%emt 0:09:03]} 22. Nc6 {[%emt 0:00:42] A dynamic duo of knights.} Qf8 {[%emt 0:02:39]} 23. Nxe7+ {[%emt 0:08:29]} Rxe7 {[%emt 0:00:06]} 24. Qg3 {[%emt 0:00:30][%csl LRd6,LRg5]} f4 {[%emt 0:04:33]} (24... Rg7 $1 $11 {remains equal.}) 25. Qxg5+ $16 {[%emt 0:02:06]} Rg7 {[%emt 0:00:06][%cal Be7g7,Bg7g2,Bg2g1][%mdl 32]} 26. Qh5 {[%emt 0:03:13]} (26. Qh4 $16) 26... f3 $11 {[%emt 0:03:58] ...f2+ is the strong threat.} 27. Re5 $2 {[%emt 0:03:55][%mdl 8192]} (27. Re6 $11 {and White stays safe.}) 27... Qf4 $19 {[%emt 0:02:05]} 28. Ne4 {[%emt 0:08:22] [#]} (28. Rd1 $142 Rf8 29. Ne2 (29. Kh1 $2 Qg3 $19) 29... fxe2 30. Qxe2) 28... Rf8 $1 {[%emt 0:06:15] ( -> ...fxg2)} 29. Bd3 {[%emt 0:00:00]} (29. Rg5 f2+) 29... Nxe4 $2 {[%emt 0:08:40]} (29... Qe3+ {mates} 30. Kh2 Nxe4 (30... Rxg2+ 31. Kh1 Nxe4 32. Qxh7+ Kxh7 33. Bxe4+ Kg7 34. Re7+ Rf7 35. Rxf7+ Kxf7 36. Rf1 Qxe4 37. d6 f2 38. d7 Rg8+ 39. Kh2 Qg2#) 31. Qxh7+ Kxh7 (31... Rxh7 $2 32. Rxe4 Qh6 33. Bf1 $19) 32. Bxe4+ Kh8 (32... Kg8 $2 33. Bh7+ Kxh7 34. Rxe3 $19) 33. Rh5+ Kg8 34. Rg1 f2 (34... Qxe4 35. g4 f2 36. Rf1 Rf3 37. Rh6 Qf4+ 38. Kh1) 35. Bh7+ Rxh7 36. Rd1 Rxh5 37. g3 f1=N+ (37... f1=R 38. Rxf1 Rf2+ 39. Rxf2 Qxf2+ 40. Kh1 Bxd5#) 38. Rxf1 Rf2+ 39. Rxf2 Qxf2+ 40. Kh1 Bxd5#) 30. Rxe4 $15 {[%emt 0:01:00]} Rxg2+ $40 {[%emt 0:00:47][%mdl 128] Black is up to no good.} 31. Kf1 {[%emt 0:00:00]} Rg1+ $1 {[%emt 0:00:35]} 32. Kf2 $2 {[%emt 0:00:27][%mdl 8192]} (32. Kxg1 $15 Qg3+ 33. Kf1 Qg2+ 34. Ke1 f2+ 35. Kd1 Qxe4 36. Qg5+ (36. Bxe4 $2 f1=Q+ 37. Kd2 Qf2+ 38. Kc1 Qe3+ 39. Kb2 Qxe4 $19) 36... Kh8 37. Kd2) 32... Qd2+ {[%emt 0:03:19]} (32... Rxa1 33. Rxf4 Rxf4 34. Qg5+ (34. Qxh7+ Kf8 $18) 34... Kf7 35. Qxf4+ Ke8 36. d6 (36. Qxf3 Bxd5 37. Qxd5 Ra2 $18) (36. Qb8+ Kf7 37. Qxb7+ Kf6 38. d6 Rf1+ 39. Bxf1 Kf5 40. Qxh7+ Kf6 41. d7 Ke5 42. d8=Q a5 43. Qh5+ Kf4 44. Qdh4#) 36... Kd7 37. Qf8 (37. Bxh7 Rd1 $18) (37. Bxh7 Rd1 $18)) 33. Re2 {[%emt 0:00:31]} fxe2+ {[%emt 0:00:11] Weighted Error Value: White=1.13/Black=0.25 (precise) .  Loses game:     	White=2     	---        Mistake:       	White=4     	Black=2      Inaccurate:     	White=3     	Black=1      OK:         	White=6     	Black=8      Best:        	White=2     	Black=4      Strong:       	---       	Black=2} 0-1

[Event "76th Montenegro Championship 2024"]
[Site "Podgorica"]
[Date "2024.02.14"]
[Round "10.6"]
[White "Nenezic, Danilo"]
[Black "Drasko, Milan"]
[Result "0-1"]
[ECO "C02"]
[WhiteElo "2086"]
[BlackElo "2339"]
[Annotator "RC"]
[PlyCount "60"]
[EventDate "2024.02.06"]
[EventType "swiss"]
[EventCountry "MNE"]
[SourceTitle "playchess.com"]
[Source "ChessBase"]
[SourceQuality "1"]
[TimeControl "40/5400+30:1800+30"]

1. e4 {[%emt 0:06:10]} e6 {[%emt 0:00:40]} 2. d4 {[%emt 0:00:34]} d5 {[%emt 0:00:08]} 3. e5 {[%emt 0:00:17]} c5 {[%emt 0:00:51]} 4. c3 {[%emt 0:00:53]} Nc6 {[%emt 0:00:49]} 5. Nf3 {[%emt 0:00:36]} Bd7 {[%emt 0:00:43]} 6. dxc5 {[%emt 0:00:40]} Bxc5 {[%emt 0:01:52]} 7. b4 {[%emt 0:00:27]} Bb6 {[%emt 0:01:47]} 8. Bd3 {[%emt 0:00:57]} Bc7 {[%emt 0:16:22]} 9. Qe2 {[%emt 0:07:13]} Qb8 {[%emt 0:03:50]} 10. Bf4 {[%emt 0:00:52]} f6 {[%emt 0:01:29]} 11. exf6 {[%emt 0:01:11]} Nxf6 {[%emt 0:00:19]} 12. Bxc7 {[%emt 0:01:35]} Qxc7 {[%emt 0:00:08]} 13. b5 {[%emt 0:02:49]} Nd8 {[%emt 0:07:49]} 14. Ne5 {[%emt 0:04:38]} O-O {[%emt 0:03:14]} 15. O-O {[%emt 0:01:13]} Nf7 {[%emt 0:02:49]} 16. f4 {[%emt 0:06:04]} Nxe5 {[%emt 0:04:02]} 17. fxe5 {[%emt 0:00:49]} Ne4 {[%emt 0:01:35]} 18. Re1 {[%emt 0:28:23]} Bxb5 {[%emt 0:06:12]} 19. Bxb5 {[%emt 0:09:45]} Qc5+ {[%emt 0:00:19]} 20. Qe3 {[%emt 0:00:18]} Qxb5 {[%emt 0:00:20]} 21. Nd2 {[%emt 0:00:22]} Nxd2 {[%emt 0:02:04]} 22. Qxd2 {[%emt 0:00:07]} Qc5+ {[%emt 0:00:27]} 23. Re3 {[%emt 0:00:46]} Rf4 {[%emt 0:10:36]} 24. Kh1 {[%emt 0:25:51]} Raf8 {[%emt 0:00:25]} 25. h3 {[%emt 0:00:00]} Qc4 {[%emt 0:06:23]} 26. Rg3 {[%emt 0:00:00]} Qe4 {[%emt 0:08:16]} 27. Qe1 {[%emt 0:00:00]} Qxe1+ {[%emt 0:02:25]} 28. Rxe1 {[%emt 0:00:00]} Rf1+ {[%emt 0:00:12]} 29. Rxf1 {[%emt 0:00:00]} Rxf1+ {[%emt 0:00:13]} 30. Kh2 {[%emt 0:00:00]} Re1 {[%emt 0:19:11]} 0-1

[Event "76th Montenegro Championship 2024"]
[Site "Podgorica"]
[Date "2024.02.14"]
[Round "10.7"]
[White "Milovic, Jovan"]
[Black "Djurovic, Peko"]
[Result "1/2-1/2"]
[ECO "D05"]
[WhiteElo "2223"]
[BlackElo "2332"]
[Annotator "RC"]
[PlyCount "22"]
[EventDate "2024.02.06"]
[EventType "swiss"]
[EventCountry "MNE"]
[SourceTitle "playchess.com"]
[Source "ChessBase"]
[SourceQuality "1"]
[TimeControl "40/5400+30:1800+30"]

1. d4 {[%emt 0:00:41]} d5 {[%emt 0:06:43]} 2. Nf3 {[%emt 0:00:57]} Nf6 {[%emt 0:00:15]} 3. e3 {[%emt 0:00:48]} e6 {[%emt 0:00:25]} 4. Bd3 {[%emt 0:01:39]} c5 {[%emt 0:00:47]} 5. O-O {[%emt 0:00:30]} c4 {[%emt 0:05:52]} 6. Be2 {[%emt 0:00:06]} b5 {[%emt 0:00:26]} 7. b3 {[%emt 0:00:38]} Bb7 {[%emt 0:00:58]} 8. Ne5 {[%emt 0:05:56]} Bd6 {[%emt 1:19:04]} 9. f4 {[%emt 1:23:45]} Nc6 10. Nc3 {[%emt 0:00:30]} b4 {[%emt 0:01:00]} 11. Na4 {[%emt 0:00:30]} Nb8 {[%emt 0:00:30]} 1/2-1/2

[Event "76th Montenegro Championship 2024"]
[Site "Podgorica"]
[Date "2024.02.14"]
[Round "10.8"]
[White "Skvortsova, Alena"]
[Black "Podlesnik, Bogdan"]
[Result "1/2-1/2"]
[ECO "B45"]
[WhiteElo "2111"]
[BlackElo "2284"]
[Annotator "TA"]
[PlyCount "20"]
[EventDate "2024.02.06"]
[EventType "swiss"]
[EventCountry "MNE"]
[SourceTitle "playchess.com"]
[Source "ChessBase"]
[SourceQuality "1"]
[TimeControl "40/5400+30:1800+30"]

{[%evp 12,20,49,39,38,39,26,40,41,42,21]} 1. e4 {[%emt 0:02:20]} c5 {[%emt 0:03:22]} 2. Nf3 {[%emt 0:00:14][%cal Bg1f3,Bf3d4,Bd4b5][%mdl 32]} e6 {[%emt 0:00:41]} 3. d4 {[%emt 0:00:07]} cxd4 {[%emt 0:00:25]} 4. Nxd4 {[%emt 0:00:07]} Nf6 {[%emt 0:00:04]} 5. Nc3 {[%emt 0:00:08]} Nc6 {[%emt 0:00:06]} 6. Ndb5 {[%emt 0:00:15]} Bc5 {[%emt 0:00:08]} 7. Bf4 {[%emt 0:00:35] [#] Nc7+ wäre nun fies.} O-O {[%emt 0:00:14]} 8. Bc7 {[%emt 0:00:17]} Qe7 {[%emt 0:00:09] ...d5 ist eine echte Drohung.} 9. Bd6 $1 {[%emt 0:00:21]} Bxd6 {[%emt 0:01:00]} 10. Qxd6 {[%emt 0:00:13]} Ne8 {[%emt 0:00:40] Weiß übernahm nach der Eröffnung die Kontrolle.   Gewichteter Fehlerwert: Weiß=0.00 (makellos) /Schwarz=0.00 (makellos) .  OK:         	Weiß=1     	Schwarz=3     Stark:        	Weiß=1     	---} 1/2-1/2